lending/lending_fUSD_20240411
["ID","MTS","AMOUNT","RATE_DAILY","PERIOD"]
[322141404,1712848243452,-151.0,0.0003197,7]
[322141405,1712848243462,-151.0,0.0003197,7]
[322141406,1712848243471,-338.173423,0.0003197,7]
[322141407,1712848243481,-353.885644,0.0003197,7]
[322141408,1712848243490,-338.877614,0.0003197,7]
[322141409,1712848243499,-338.173423,0.0003197,7]
[322141410,1712848243509,-338.877614,0.0003197,7]
[322141411,1712848243519,-353.885644,0.0003197,7]
[322141412,1712848243528,-151.0,0.0003197,7]
[322141413,1712848243537,-151.0,0.0003197,7]
[322141414,1712848243547,-151.0,0.0003197,7]
[322141415,1712848243556,-320.681158,0.0003197,7]
[322141416,1712848243566,-320.681158,0.0003197,7]
[322141417,1712848243575,-151.0,0.0003197,7]
[322141418,1712848243584,-614.061326,0.0003197,7]
[322141419,1712848243593,-614.061326,0.0003197,7]
[322141420,1712848243602,-151.0,0.0003197,7]
[322141421,1712848243611,-151.0,0.0003197,7]
[322141422,1712848243620,-151.0,0.0003197,7]
[322141423,1712848243630,-151.0,0.0003197,7]
[322141424,1712848243639,-151.0,0.0003197,7]
[322141425,1712848243649,-151.0,0.0003197,7]
[322141426,1712848243659,-151.0,0.0003197,7]
[322141427,1712848243667,-151.0,0.0003197,7]
[322141428,1712848243676,-151.0,0.0003197,7]
[322141429,1712848243685,-151.0,0.0003197,7]
[322141430,1712848243695,-151.0,0.0003197,7]
[322141431,1712848243704,-151.0,0.0003197,7]
[322141432,1712848243712,-151.834178,0.0003197,7]
[322141433,1712848243722,-169.064216,0.0003197,7]
[322141434,1712848243731,-169.064216,0.0003197,7]
[322141435,1712848243741,-151.54957,0.0003197,7]
[322141436,1712848243750,-749.395887,0.0003197,2]
[322141437,1712848243759,-152.347874,0.0003197,7]
[322141438,1712848243768,-749.395887,0.0003197,2]
[322141439,1712848243777,-151.0,0.0003197,7]
[322141440,1712848243786,-160.502803,0.0003197,7]
[322141441,1712848243796,-151.0,0.0003197,7]
[322141442,1712848243805,-151.0,0.0003197,7]
[322141443,1712848243814,-151.0,0.0003197,7]
[322141444,1712848243824,-176.854421,0.0003197,7]
[322141445,1712848243833,-151.0,0.0003197,7]
[322141446,1712848243842,-176.854421,0.0003197,7]
[322141447,1712848243852,-151.0,0.0003197,7]
[322141448,1712848243861,-151.0,0.0003197,7]
[322141449,1712848243870,-294.822118,0.0003197,7]
[322141450,1712848243879,-294.822118,0.0003197,7]
[322141451,1712848243888,-151.0,0.0003197,7]
[322141452,1712848243897,-192.858646,0.0003197,7]
[322141453,1712848243907,-192.858646,0.0003197,7]
[322141454,1712848243916,-283.250409,0.0003197,7]
[322141455,1712848243926,-151.0,0.0003197,7]
[322141456,1712848243936,-283.250409,0.0003197,7]
[322141457,1712848243946,-153.545955,0.0003197,7]
[322141458,1712848243955,-151.0,0.0003197,7]
[322141459,1712848243965,-151.0,0.0003197,7]
[322141460,1712848243974,-151.0,0.0003197,7]
[322141461,1712848243984,-151.0,0.0003197,7]
[322141462,1712848243993,-153.545955,0.0003197,7]
[322141463,1712848244002,-151.0,0.0003197,7]
[322141464,1712848244011,-334.861198,0.0003197,7]
[322141465,1712848244021,-334.861198,0.0003197,7]
[322141466,1712848244030,-351.83518,0.0003197,7]
[322141467,1712848244039,-351.83518,0.0003197,7]
[322141468,1712848244049,-544.705449,0.0003197,7]
[322141469,1712848244058,-544.705449,0.0003197,7]
[322141470,1712848244069,-229986.18031108,0.00031971,2]
[322141471,1712848244078,-580.77783011,0.00031971,2]
[322141472,1712848244087,-17312.53040594,0.00031972,2]
[322141473,1712848244096,-580.77783011,0.00031972,2]
[322141474,1712848244109,-959.964371,0.00031972,7]
[322141475,1712848244118,-161.021274,0.00031972,7]
[322141476,1712848244127,-151.0,0.00031972,7]
[322141477,1712848244136,-959.964371,0.00031972,7]
[322141478,1712848244147,-161.021274,0.00031972,7]
[322141479,1712848244156,-226.793385,0.00031972,7]
[322141480,1712848244165,-226.793385,0.00031972,7]
[322141481,1712848244174,-313.882761,0.00031972,7]
[322141482,1712848244185,-229986.18031108,0.00031972,2]
[322141483,1712848244200,-1198.58,0.00031973,2]
[322141484,1712848244209,-580.77783011,0.00031974,2]
[322141485,1712848244219,-17312.53040594,0.00031977,2]
[322141486,1712848244228,-580.77783011,0.0003198,2]
[322141487,1712848244238,-17312.53040594,0.00031983,2]
[322141488,1712848244248,-153.003746,0.00031986,7]
[322141489,1712848244257,-151.560124,0.00031986,7]
[322141490,1712848244266,-151.0,0.00031986,7]
[322141491,1712848244275,-338.173423,0.00031986,7]
[322141492,1712848244284,-353.885644,0.00031986,7]
[322141493,1712848244293,-338.877614,0.00031986,7]
[322141494,1712848244303,-338.173423,0.00031986,7]
[322141495,1712848244312,-338.877614,0.00031986,7]
[322141496,1712848244323,-353.885644,0.00031986,7]
[322141497,1712848244333,-153.569012,0.00031986,7]
[322141498,1712848244342,-151.0,0.00031986,7]
[322141499,1712848244352,-151.0,0.00031986,7]
[322141500,1712848244361,-320.681158,0.00031986,7]
[322141501,1712848244370,-320.681158,0.00031986,7]
[322141502,1712848244379,-151.214938,0.00031986,7]
[322141503,1712848244388,-614.061326,0.00031986,7]
[322141504,1712848244397,-614.061326,0.00031986,7]
[322141505,1712848244407,-151.0,0.00031986,7]
[322141506,1712848244415,-151.0,0.00031986,7]
[322141507,1712848244425,-151.0,0.00031986,7]
[322141508,1712848244434,-151.0,0.00031986,7]
[322141509,1712848244443,-151.0,0.00031986,7]
[322141510,1712848244452,-203.38057,0.00031986,7]
[322141511,1712848244461,-151.0,0.00031986,7]
[322141512,1712848244471,-151.0,0.00031986,7]
[322141513,1712848244480,-151.0,0.00031986,7]
[322141514,1712848244490,-255.622151,0.00031986,7]
[322141515,1712848244499,-151.0,0.00031986,7]
[322141516,1712848244508,-151.0,0.00031986,7]
[322141517,1712848244517,-169.064216,0.00031986,7]
[322141518,1712848244526,-169.064216,0.00031986,7]
[322141519,1712848244535,-749.395887,0.00031986,2]
[322141520,1712848244545,-749.395887,0.00031986,2]
[322141521,1712848244554,-151.0,0.00031986,7]
[322141522,1712848244564,-151.0,0.00031986,7]
[322141523,1712848244577,-151.0,0.00031986,7]
[322141524,1712848244587,-151.0,0.00031986,7]
[322141525,1712848244596,-176.854421,0.00031986,7]
[322141526,1712848244606,-151.0,0.00031986,7]
[322141527,1712848244615,-176.854421,0.00031986,7]
[322141528,1712848244625,-151.0,0.00031986,7]
[322141529,1712848244634,-151.0,0.00031986,7]
[322141530,1712848244643,-294.822118,0.00031986,7]
[322141531,1712848244653,-294.822118,0.00031986,7]
[322141532,1712848244662,-151.0,0.00031986,7]
[322141533,1712848244671,-192.858646,0.00031986,7]
[322141534,1712848244681,-192.858646,0.00031986,7]
[322141535,1712848244690,-283.250409,0.00031986,7]
[322141536,1712848244699,-151.0,0.00031986,7]
[322141537,1712848244709,-283.250409,0.00031986,7]
[322141538,1712848244718,-153.545955,0.00031986,7]
[322141539,1712848244728,-151.0,0.00031986,7]
[322141540,1712848244737,-158.582803,0.00031986,7]
[322141541,1712848244746,-151.0,0.00031986,7]
[322141542,1712848244755,-161.584953,0.00031986,7]
[322141543,1712848244765,-153.545955,0.00031986,7]
[322141544,1712848244774,-151.0,0.00031986,7]
[322141545,1712848244784,-334.861198,0.00031986,7]
[322141546,1712848244793,-334.861198,0.00031986,7]
[322141547,1712848244802,-351.83518,0.00031986,7]
[322141548,1712848244811,-351.83518,0.00031986,7]
[322141549,1712848244823,-544.705449,0.00031986,7]
[322141550,1712848244833,-544.705449,0.00031986,7]
[322141551,1712848244843,-229986.18031108,0.00031986,2]
[322141552,1712848244852,-947.86005895,0.00031989,2]
[322141553,1712848244862,-580.77783011,0.00031991,2]
[322141554,1712848244871,-229986.18031108,0.00031997,2]
[322141555,1712848244881,-947.86005895,0.00032,2]
[322141556,1712848244890,-332.1406229,0.00032,4]
[322141557,1712848244901,-20000.0,0.00032,3]
[322141558,1712848244911,-1000.69153671,0.00032,2]
[322141559,1712848244921,-447.16,0.00032,2]
[322141560,1712848244931,-2123.76488424,0.00032056,3]
[322141561,1712848244941,-1000.0,0.00032081,2]
[322141562,1712848244951,-157.04112,0.00032148,19]
[322141563,1712848244961,-2370.47952573,0.00032169,5]
[322141564,1712848244970,-7361.46,0.00032308,5]
[322141565,1712848244979,-321.68566179,0.00032319,2]
[322141566,1712848244989,-224.91491427,0.00032368,20]
[322141567,1712848244998,-971.98264338,0.00032373,4]
[322141568,1712848245007,-1683.77738415,0.000324,2]
[322141569,1712848245017,-157.04112,0.00032448,20]
[322141570,1712848245026,-66432.12267961,0.00032469,2]
[322141571,1712848245035,-959.964371,0.00032469,7]
[322141572,1712848245045,-161.021274,0.00032469,7]
[322141573,1712848245054,-200.520274,0.00032469,7]
[322141574,1712848245064,-959.964371,0.00032469,7]
[322141575,1712848245077,-161.021274,0.00032469,7]
[322141576,1712848245087,-226.793385,0.00032469,7]
[322141577,1712848245096,-226.793385,0.00032469,7]
[322141578,1712848245106,-313.882761,0.00032469,7]
[322141579,1712848245118,-179.56,0.0003248,2]
[322141580,1712848245127,-4068.16896171,0.000325,4]
[322141581,1712848245136,-152.77070344,0.00032537,2]
[322141582,1712848245146,-1589.83,0.00032603,2]
[322141583,1712848245156,-1133.99,0.00032603,2]
[322141584,1712848245165,-2123.76488424,0.00032684,4]
[322141585,1712848245174,-2370.47952573,0.00032737,6]
[322141586,1712848245183,-157.04112,0.00032748,21]
[322141587,1712848245194,-3105.91945334,0.00032764,2]
[322141588,1712848245204,-10000.0,0.00032776,2]
[322141589,1712848245213,-9321.2782592,0.00032853,2]
[322141590,1712848245222,-807.9091102,0.00032853,2]
[322141592,1712848245231,-2683.390418,0.00032853,2]
[322141593,1712848245241,-224.91491427,0.00032869,21]
[322141594,1712848245250,-4395.89511818,0.00032874,4]
[322141595,1712848245260,-558.40171825,0.00032876,2]
[322141596,1712848245270,-339.58091514,0.00032876,2]
[322141597,1712848245281,-500.0,0.00032876,2]
[322141599,1712848245290,-500.0,0.00032876,2]
[322141601,1712848245299,-500.0,0.00032876,2]
[322141602,1712848245309,-511.0,0.00032876,2]
[322141603,1712848245323,-500.0,0.00032876,2]
[322141604,1712848245527,-649.73835669,0.00032876,2]
[322141605,1712848245537,-500.0,0.00032876,2]
[322141606,1712848245546,-500.0,0.00032876,2]
[322141607,1712848245557,-501.44192657,0.00032876,2]
[322141608,1712848245567,-500.0,0.00032876,2]
[322141609,1712848245578,-500.0,0.00032876,2]
[322141610,1712848245588,-500.0,0.00032876,2]
[322141611,1712848245597,-500.0,0.00032876,2]
[322141612,1712848245606,-620.73182049,0.00032876,2]
[322141613,1712848245616,-500.0,0.00032876,2]
[322141614,1712848245625,-502.99666899,0.00032876,2]
[322141615,1712848245634,-500.0,0.00032876,2]
[322141616,1712848245643,-365.1173045,0.00032876,2]
[322141617,1712848245653,-500.0,0.00032876,2]
[322141618,1712848245663,-500.0,0.00032876,2]
[322141619,1712848245672,-500.0,0.00032876,2]
[322141620,1712848245682,-464.6972431,0.00032876,2]
[322141621,1712848245691,-500.0,0.00032876,2]
[322141622,1712848245701,-500.0,0.00032876,2]
[322141623,1712848245710,-500.0,0.00032876,2]
[322141624,1712848245719,-646.91099354,0.00032876,2]
[322141625,1712848245729,-500.0,0.00032876,2]
[322141626,1712848245738,-500.0,0.00032876,2]
[322141627,1712848245747,-500.0,0.00032876,2]
[322141628,1712848245756,-515.35330239,0.00032876,2]
[322141629,1712848245766,-508.26664775,0.00032876,2]
[322141630,1712848245775,-505.32533807,0.00032876,2]
[322141631,1712848245785,-500.0,0.00032876,2]
[322141632,1712848245794,-500.0,0.00032876,2]
[322141633,1712848245804,-500.0,0.00032876,2]
[322141634,1712848245813,-500.0,0.00032876,2]
[322141635,1712848245825,-449.2201773,0.00032876,2]
[322141636,1712848245835,-500.0,0.00032876,2]
[322141637,1712848245844,-500.0,0.00032876,2]
[322141638,1712848245853,-500.81130081,0.00032876,2]
[322141639,1712848245862,-582.1941471,0.00032876,2]
[322141640,1712848245871,-226.18465874,0.00032876,2]
[322141641,1712848245880,-500.0,0.00032876,2]
[322141642,1712848245890,-500.0,0.00032876,2]
[322141643,1712848245900,-500.0,0.00032876,2]
[322141644,1712848245909,-500.0,0.00032876,2]
[322141645,1712848245920,-500.0,0.00032876,2]
[322141646,1712848245930,-500.0,0.00032876,2]
[322141647,1712848245940,-500.0,0.00032876,2]
[322141648,1712848245949,-500.0,0.00032876,2]
[322141650,1712848245958,-500.0,0.00032876,2]
[322141651,1712848245967,-500.0,0.00032876,2]
[322141653,1712848245977,-500.0,0.00032876,2]
[322141655,1712848245986,-500.0,0.00032876,2]
[322141657,1712848245996,-500.0,0.00032876,2]
[322141658,1712848246005,-500.0,0.00032876,2]
[322141659,1712848246014,-500.0,0.00032876,2]
[322141660,1712848246024,-500.0,0.00032876,2]
[322141661,1712848246033,-500.0,0.00032876,2]
[322141662,1712848246044,-500.0,0.00032876,2]
[322141663,1712848246053,-500.0,0.00032876,2]
[322141664,1712848246062,-661.08,0.00032876,2]
[322141665,1712848246075,-500.0,0.00032876,2]
[322141666,1712848246084,-500.0,0.00032876,2]
[322141667,1712848246093,-500.0,0.00032876,2]
[322141668,1712848246103,-500.0,0.00032876,2]
[322141669,1712848246115,-500.0,0.00032876,2]
[322141670,1712848246125,-500.0,0.00032876,2]
[322141671,1712848246134,-500.0,0.00032876,2]
[322141672,1712848246144,-500.0,0.00032876,2]
[322141673,1712848246154,-1407.46,0.00032876,2]
[322141674,1712848246163,-500.0,0.00032876,2]
[322141675,1712848246172,-495.57130229,0.00032876,2]
[322141676,1712848246182,-500.0,0.00032876,2]
[322141677,1712848246193,-500.0,0.00032876,2]
[322141678,1712848246202,-500.0,0.00032876,2]
[322141679,1712848246212,-500.0,0.00032876,2]
[322141680,1712848246222,-500.0,0.00032876,2]
[322141681,1712848246233,-935.23,0.00032876,2]
[322141682,1712848246243,-500.0,0.00032876,2]
[322141683,1712848246253,-500.0,0.00032876,2]
[322141684,1712848246262,-500.0,0.00032876,2]
[322141685,1712848246273,-500.0,0.00032876,2]
[322141686,1712848246284,-500.47,0.00032876,2]
[322141687,1712848246294,-500.0,0.00032876,2]
[322141688,1712848246303,-500.0,0.00032876,2]
[322141689,1712848246313,-500.0,0.00032876,2]
[322141690,1712848246324,-500.0,0.00032876,2]
[322141691,1712848246335,-500.0,0.00032876,2]
[322141692,1712848246345,-500.0,0.00032876,2]
[322141693,1712848246356,-500.0,0.00032876,2]
[322141694,1712848246366,-269.06827834,0.00032876,2]
[322141695,1712848246376,-500.0,0.00032876,2]
[322141696,1712848246386,-500.0,0.00032876,2]
[322141697,1712848246395,-500.0,0.00032876,2]
[322141698,1712848246405,-500.0,0.00032876,2]
[322141699,1712848246416,-500.0,0.00032876,2]
[322141700,1712848246425,-500.0,0.00032876,2]
[322141701,1712848246434,-500.0,0.00032876,2]
[322141702,1712848246444,-500.0,0.00032876,2]
[322141703,1712848246454,-536.71055603,0.00032876,2]
[322141704,1712848246463,-500.0,0.00032876,2]
[322141705,1712848246483,-500.0,0.00032876,2]
[322141706,1712848246493,-500.0,0.00032876,2]
[322141707,1712848246503,-500.0,0.00032876,2]
[322141708,1712848246513,-637.88600504,0.00032876,2]
[322141709,1712848246522,-500.0,0.00032876,2]
[322141710,1712848246532,-500.0,0.00032876,2]
[322141711,1712848246542,-500.0,0.00032876,2]
[322141712,1712848246552,-500.0,0.00032876,2]
[322141713,1712848246562,-223.37154074,0.00032876,2]
[322141714,1712848246573,-503.57936717,0.00032876,2]
[322141715,1712848246582,-500.0,0.00032876,2]
[322141716,1712848246591,-567.34,0.00032876,2]
[322141717,1712848246600,-500.0,0.00032876,2]
[322141718,1712848246610,-509.69573834,0.00032876,2]
[322141719,1712848246619,-610.54,0.00032876,2]
[322141720,1712848246628,-500.0,0.00032876,2]
[322141721,1712848246638,-443.09105658,0.00032876,2]
[322141722,1712848246650,-532.94,0.00032876,2]
[322141723,1712848246660,-500.0,0.00032876,2]
[322141724,1712848246669,-500.0,0.00032876,2]
[322141725,1712848246678,-500.0,0.00032876,2]
[322141726,1712848246688,-500.0,0.00032876,2]
[322141727,1712848246698,-500.0,0.00032876,2]
[322141728,1712848246707,-364.10763965,0.00032876,2]
[322141729,1712848246717,-500.0,0.00032876,2]
[322141730,1712848246727,-500.0,0.00032876,2]
[322141731,1712848246737,-500.0,0.00032876,2]
[322141732,1712848246747,-500.0,0.00032876,2]
[322141733,1712848246759,-500.0,0.00032876,2]
[322141734,1712848246770,-500.0,0.00032876,2]
[322141735,1712848246781,-500.0,0.00032876,2]
[322141736,1712848246791,-500.0,0.00032876,2]
[322141737,1712848246802,-1142.55,0.00032876,2]
[322141738,1712848246814,-506.85512046,0.00032876,2]
[322141739,1712848246824,-479.05580862,0.00032876,2]
[322141740,1712848246833,-500.0,0.00032876,2]
[322141741,1712848246842,-500.0,0.00032876,2]
[322141742,1712848246851,-500.0,0.00032876,2]
[322141743,1712848246861,-315.88096224,0.00032876,2]
[322141744,1712848246870,-500.0,0.00032876,2]
[322141745,1712848246879,-500.0,0.00032876,2]
[322141746,1712848246890,-500.0,0.00032876,2]
[322141747,1712848246900,-500.0,0.00032876,2]
[322141748,1712848246914,-500.0,0.00032876,2]
[322141749,1712848246924,-500.0,0.00032876,2]
[322141750,1712848246934,-500.0,0.00032876,2]
[322141751,1712848246943,-500.0,0.00032876,2]
[322141752,1712848246953,-500.0,0.00032876,2]
[322141753,1712848246963,-500.0,0.00032876,2]
[322141754,1712848246973,-500.0,0.00032876,2]
[322141755,1712848246983,-500.0,0.00032876,2]
[322141756,1712848246993,-500.0,0.00032876,2]
[322141757,1712848247004,-500.0,0.00032876,2]
[322141758,1712848247014,-500.0,0.00032876,2]
[322141759,1712848247024,-574.21564177,0.00032876,2]
[322141760,1712848247034,-500.0,0.00032876,2]
[322141761,1712848247045,-515.37464451,0.00032876,2]
[322141762,1712848247055,-574.98,0.00032876,2]
[322141763,1712848247066,-500.0,0.00032876,2]
[322141764,1712848247078,-538.52045806,0.00032876,2]
[322141765,1712848247088,-500.0,0.00032876,2]
[322141766,1712848247099,-500.0,0.00032876,2]
[322141767,1712848247110,-500.0,0.00032876,2]
[322141768,1712848247124,-1197.51,0.00032876,2]
[322141769,1712848247134,-500.0,0.00032876,2]
[322141770,1712848247146,-500.0,0.00032876,2]
[322141771,1712848247156,-500.0,0.00032876,2]
[322141772,1712848247167,-500.0,0.00032876,2]
[322141773,1712848247177,-500.0,0.00032876,2]
[322141774,1712848247187,-195.35267803,0.00032876,2]
[322141775,1712848247198,-238.97737043,0.00032876,2]
[322141776,1712848247209,-500.0,0.00032876,2]
[322141777,1712848247219,-500.0,0.00032876,2]
[322141778,1712848247230,-500.0,0.00032876,2]
[322141779,1712848247240,-500.0,0.00032876,2]
[322141780,1712848247251,-500.0,0.00032876,2]
[322141781,1712848247262,-500.0,0.00032876,2]
[322141782,1712848247273,-500.0,0.00032876,2]
[322141783,1712848247283,-500.0,0.00032876,2]
[322141784,1712848247294,-500.0,0.00032876,2]
[322141785,1712848247304,-500.0,0.00032876,2]
[322141786,1712848247314,-500.0,0.00032876,2]
[322141787,1712848247327,-500.0,0.00032876,2]
[322141788,1712848247338,-445.25748969,0.00032876,2]
[322141789,1712848247349,-506.56,0.00032876,2]
[322141790,1712848247364,-500.0,0.00032876,2]
[322141791,1712848247375,-500.0,0.00032876,2]
[322141792,1712848247385,-557.23786564,0.00032876,2]
[322141793,1712848247395,-536.8919524,0.00032876,2]
[322141794,1712848247405,-500.0,0.00032876,2]
[322141795,1712848247416,-500.0,0.00032876,2]
[322141796,1712848247426,-500.0,0.00032876,2]
[322141797,1712848247436,-534.94577928,0.00032876,2]
[322141798,1712848247446,-500.0,0.00032876,2]
[322141799,1712848247456,-500.0,0.00032876,2]
[322141800,1712848247467,-500.0,0.00032876,2]
[322141801,1712848247479,-500.0,0.00032876,2]
[322141802,1712848247490,-1330.84,0.00032876,2]
[322141803,1712848247500,-686.79,0.00032876,2]
[322141804,1712848247513,-549.28,0.00032876,2]
[322141805,1712848247522,-500.0,0.00032876,2]
[322141806,1712848247533,-500.0,0.00032876,2]
[322141807,1712848247543,-521.5,0.00032876,2]
[322141808,1712848247555,-527.7277237,0.00032876,2]
[322141809,1712848247567,-500.0,0.00032876,2]
[322141810,1712848247579,-507.3472958,0.00032876,2]
[322141811,1712848247589,-500.0,0.00032876,2]
[322141812,1712848247600,-500.0,0.00032876,2]
[322141813,1712848247610,-500.0,0.00032876,2]
[322141814,1712848247620,-500.0,0.00032876,2]
[322141815,1712848247630,-500.0,0.00032876,2]
[322141816,1712848247640,-500.0,0.00032876,2]
[322141817,1712848247652,-500.0,0.00032876,2]
[322141818,1712848247663,-500.0,0.00032876,2]
[322141819,1712848247675,-500.0,0.00032876,2]
[322141820,1712848247686,-563.23453549,0.00032876,2]
[322141821,1712848247697,-500.0,0.00032876,2]
[322141822,1712848247708,-558.9,0.00032876,2]
[322141823,1712848247719,-500.0,0.00032876,2]
[322141824,1712848247728,-500.0,0.00032876,2]
[322141825,1712848247738,-500.0,0.00032876,2]
[322141826,1712848247747,-500.0,0.00032876,2]
[322141827,1712848247757,-500.0,0.00032876,2]
[322141828,1712848247767,-500.0,0.00032876,2]
[322141829,1712848247777,-500.0,0.00032876,2]
[322141830,1712848247790,-500.0,0.00032876,2]
[322141831,1712848247800,-500.0,0.00032876,2]
[322141832,1712848247810,-514.41901183,0.00032876,2]
[322141833,1712848247822,-500.0,0.00032876,2]
[322141834,1712848247832,-972.77,0.00032876,2]
[322141835,1712848247842,-500.0,0.00032876,2]
[322141836,1712848247852,-500.0,0.00032876,2]
[322141837,1712848247863,-500.0,0.00032876,2]
[322141838,1712848247875,-1202.97,0.00032876,2]
[322141839,1712848247886,-500.0,0.00032876,2]
[322141840,1712848247895,-500.0,0.00032876,2]
[322141841,1712848247906,-500.0,0.00032876,2]
[322141842,1712848247916,-500.0,0.00032876,2]
[322141843,1712848247926,-500.0,0.00032876,2]
[322141844,1712848247936,-500.0,0.00032876,2]
[322141845,1712848247946,-500.0,0.00032876,2]
[322141846,1712848247958,-500.0,0.00032876,2]
[322141847,1712848247968,-500.0,0.00032876,2]
[322141848,1712848247978,-234.47475153,0.00032876,2]
[322141849,1712848247988,-507.18425562,0.00032876,2]
[322141850,1712848247998,-500.0,0.00032876,2]
[322141851,1712848248008,-500.0,0.00032876,2]
[322141852,1712848248019,-289.16897033,0.00032876,2]
[322141853,1712848248030,-500.0,0.00032876,2]
[322141854,1712848248039,-500.0,0.00032876,2]
[322141855,1712848248051,-500.0,0.00032876,2]
[322141856,1712848248061,-500.0,0.00032876,2]
[322141857,1712848248072,-500.0,0.00032876,2]
[322141858,1712848248082,-500.0,0.00032876,2]
[322141859,1712848248092,-500.0,0.00032876,2]
[322141860,1712848248102,-500.0,0.00032876,2]
[322141861,1712848248114,-500.0,0.00032876,2]
[322141862,1712848248126,-500.0,0.00032876,2]
[322141863,1712848248136,-504.68,0.00032876,2]
[322141864,1712848248146,-500.0,0.00032876,2]
[322141865,1712848248157,-500.0,0.00032876,2]
[322141866,1712848248167,-500.0,0.00032876,2]
[322141867,1712848248177,-545.24955695,0.00032876,2]
[322141868,1712848248187,-500.0,0.00032876,2]
[322141869,1712848248199,-500.0,0.00032876,2]
[322141870,1712848248209,-559.1,0.00032876,2]
[322141871,1712848248220,-500.0,0.00032876,2]
[322141872,1712848248230,-500.0,0.00032876,2]
[322141873,1712848248239,-1060.44,0.00032876,2]
[322141874,1712848248250,-509.13293196,0.00032876,2]
[322141875,1712848248260,-500.0,0.00032876,2]
[322141876,1712848248270,-603.05550775,0.00032876,2]
[322141877,1712848248280,-500.0,0.00032876,2]
[322141878,1712848248290,-500.0,0.00032876,2]
[322141879,1712848248300,-532.45,0.00032876,2]
[322141880,1712848248356,-791.16,0.00032876,2]
[322141881,1712848248366,-500.0,0.00032876,2]
[322141882,1712848248377,-500.0,0.00032876,2]
[322141883,1712848248388,-500.0,0.00032876,2]
[322141884,1712848248398,-500.0,0.00032876,2]
[322141885,1712848248409,-500.0,0.00032876,2]
[322141886,1712848248420,-500.0,0.00032876,2]
[322141887,1712848248429,-734.4,0.00032876,2]
[322141888,1712848248439,-500.0,0.00032876,2]
[322141889,1712848248450,-564.27613398,0.00032876,2]
[322141890,1712848248459,-500.0,0.00032876,2]
[322141891,1712848248469,-202.80001127,0.00032876,2]
[322141892,1712848248479,-500.0,0.00032876,2]
[322141893,1712848248490,-500.0,0.00032876,2]
[322141894,1712848248502,-523.31024304,0.00032876,2]
[322141895,1712848248511,-2315.11,0.00032876,2]
[322141896,1712848248521,-500.0,0.00032876,2]
[322141897,1712848248531,-500.0,0.00032876,2]
[322141898,1712848248541,-703.08,0.00032876,2]
[322141899,1712848248550,-500.0,0.00032876,2]
[322141900,1712848248561,-500.0,0.00032876,2]
[322141901,1712848248571,-500.0,0.00032876,2]
[322141902,1712848248581,-500.0,0.00032876,2]
[322141903,1712848248590,-2605.27,0.00032876,2]
[322141904,1712848248599,-509.58396694,0.00032876,2]
[322141905,1712848248609,-500.0,0.00032876,2]
[322141906,1712848248912,-523.33355816,0.00032876,2]
[322141907,1712848248924,-500.0,0.00032876,2]
[322141908,1712848248935,-500.0,0.00032876,2]
[322141909,1712848248945,-500.0,0.00032876,2]
[322141910,1712848248955,-500.0,0.00032876,2]